bitfinex/quotes_BTCUSD_20220204
["timestamp","ask_amount","ask_price","bid_price","bid_amount"]
[1643949173971,0.05,37290.0,37288.0,0.00189139]
[1643949174173,0.05,37290.0,37288.0,0.00119779]
[1643949174375,0.117069,37291.0,37288.0,0.00119779]
[1643949174774,0.05,37290.0,37288.0,0.00119779]
[1643949175175,0.067069,37291.0,37288.0,0.23158687]
[1643949176618,0.067069,37291.0,37288.0,0.23228047]
[1643949177518,0.067069,37291.0,37289.0,0.23038908]
[1643949177717,0.067069,37291.0,37289.0,0.23058687]
[1643949177718,0.55945762,37290.0,37289.0,0.23058687]
[1643949177920,0.55945762,37290.0,37289.0,0.00019779]
[1643949177921,0.4,37290.0,37289.0,0.00019779]
[1643949178125,0.05,37290.0,37288.0,0.28228047]
[1643949178319,0.117069,37291.0,37289.0,0.58035708]
[1643949178520,0.067069,37291.0,37289.0,0.45039852]
[1643949178720,0.05,37290.0,37289.0,0.45039852]
[1643949179021,0.067069,37291.0,37289.0,0.58055487]
[1643949179219,0.067069,37291.0,37289.0,0.23058687]
[1643949179865,0.067069,37291.0,37289.0,0.44266626]
[1643949180466,0.067069,37291.0,37289.0,0.23058687]
[1643949180668,0.067069,37291.0,37289.0,0.00019779]
[1643949180867,0.067069,37291.0,37288.0,0.28228047]
[1643949181270,0.067069,37291.0,37288.0,0.28158687]
[1643949181469,0.067069,37291.0,37289.0,0.23038908]
[1643949181669,0.067069,37291.0,37289.0,0.23058687]
[1643949182071,0.21210627,37290.0,37289.0,0.23058687]
[1643949182269,0.05,37290.0,37289.0,0.23058687]
[1643949182670,0.117069,37291.0,37289.0,0.23058687]
[1643949184723,0.117069,37291.0,37289.0,0.00019779]
[1643949184924,0.32802054,37291.0,37288.0,0.23158687]
[1643949185124,0.117069,37291.0,37288.0,0.23228047]
[1643949186625,0.117069,37291.0,37289.0,0.23038908]
[1643949186824,0.117069,37291.0,37289.0,0.00019779]
[1643949187062,0.65811843,37290.0,37289.0,0.23058687]
[1643949187264,0.117069,37291.0,37288.0,0.23158687]
[1643949187463,0.117069,37291.0,37288.0,0.23228047]
[1643949187663,0.117069,37291.0,37289.0,0.23038908]
[1643949187863,0.117069,37291.0,37289.0,0.23058687]
[1643949188164,0.6074216,37290.0,37289.0,0.23058687]
[1643949188364,0.117069,37291.0,37289.0,0.23058687]
[1643949193033,0.117069,37291.0,37290.0,0.23038908]
[1643949194563,0.117069,37291.0,37289.0,0.28786562]
[1643949194762,0.117069,37291.0,37289.0,0.00089139]
[1643949195165,0.117069,37291.0,37290.0,0.23052521]
[1643949195463,0.117069,37291.0,37289.0,0.28855922]
[1643949195663,0.117069,37291.0,37289.0,0.28786562]
[1643949195867,0.117069,37291.0,37290.0,0.05]
[1643949199714,0.467037,37291.0,37290.0,0.05]
[1643949199915,0.167069,37291.0,37288.0,0.2891623]
[1643949200914,0.167069,37291.0,37288.0,0.28936009]
[1643949202173,0.117069,37291.0,37288.0,0.28936009]
[1643949202373,0.167069,37291.0,37288.0,0.28936009]
[1643949203176,0.167069,37291.0,37289.0,0.2881623]
[1643949203977,0.117069,37291.0,37289.0,0.3924523]
[1643949204177,0.067069,37291.0,37290.0,0.349968]
[1643949204382,0.167069,37291.0,37290.0,0.6381303]
[1643949206014,0.117069,37291.0,37290.0,0.6381303]
[1643949206712,0.067069,37291.0,37290.0,0.6381303]
[1643949208515,0.067069,37291.0,37290.0,0.63811186]
[1643949212670,0.067069,37291.0,37290.0,0.349968]
[1643949223120,0.06700603,37291.0,37290.0,0.349968]
[1643949227874,0.11700603,37291.0,37290.0,0.349968]
[1643949228076,0.06700603,37291.0,37290.0,0.349968]
[1643949228516,0.11700603,37291.0,37290.0,0.349968]
[1643949228818,0.11200603,37291.0,37290.0,0.349968]
[1643949230019,0.06200603,37291.0,37290.0,0.349968]
[1643949230222,0.11200603,37291.0,37289.0,0.067054]
[1643949230420,0.06200603,37291.0,37290.0,0.63820501]
[1643949232467,0.06200603,37291.0,37290.0,1.16667327]
[1643949233266,0.06200603,37291.0,37290.0,1.16167327]
[1643949234468,0.27345376,37291.0,37290.0,0.81661827]
[1643949234669,0.62350876,37291.0,37290.0,0.81661827]
[1643949235574,0.41206103,37291.0,37290.0,0.81661827]
[1643949235814,0.62442216,37291.0,37290.0,0.81661827]
[1643949236213,0.62551939,37291.0,37290.0,0.81661827]
[1643949236612,0.41206103,37291.0,37290.0,0.81661827]
[1643949241383,0.06200603,37291.0,37290.0,0.81661827]
[1643949243821,0.11200603,37291.0,37290.0,0.81661827]
[1643949248867,0.06200603,37291.0,37290.0,0.81661827]
[1643949249067,0.11200603,37291.0,37290.0,0.81661827]
[1643949250468,0.16200603,37291.0,37290.0,0.81661827]
[1643949252123,0.11200603,37291.0,37290.0,0.81661827]
[1643949253224,0.06200603,37291.0,37290.0,0.81661827]
[1643949253425,0.16200603,37291.0,37290.0,0.81661827]
[1643949257168,0.51206103,37291.0,37290.0,0.81661827]
[1643949260223,0.51206103,37291.0,37290.0,0.20176012]
[1643949263173,1.01206103,37291.0,37290.0,0.20176012]
[1643949263371,0.66200603,37291.0,37290.0,0.20176012]
[1643949264571,1.06200603,37291.0,37290.0,0.20176012]
[1643949264772,0.66200603,37291.0,37290.0,0.20176012]
[1643949264974,0.61200603,37291.0,37290.0,0.20176012]
[1643949265272,1.11200603,37291.0,37290.0,0.20176012]
[1643949265473,0.66200603,37291.0,37290.0,0.20176012]
[1643949268219,1.01206103,37291.0,37290.0,0.20176012]
[1643949269119,0.51206103,37291.0,37290.0,0.20176012]
[1643949269770,1.01206103,37291.0,37290.0,0.20176012]
[1643949273721,1.24157528,37291.0,37290.0,0.20176012]
[1643949276521,1.01206103,37291.0,37290.0,0.20176012]
[1643949280376,0.66200603,37291.0,37290.0,0.20176012]
[1643949285971,0.16200603,37291.0,37290.0,0.20176012]
[1643949287871,0.51206103,37291.0,37290.0,0.20176012]
[1643949290327,0.51206103,37291.0,37286.0,0.002]
[1643949290328,0.34116564,37286.0,37285.0,0.64315994]
[1643949290523,0.39116564,37286.0,37285.0,0.64315994]
[1643949290924,0.39116564,37286.0,37285.0,0.65091627]
[1643949291971,0.34116564,37286.0,37285.0,0.64219508]
[1643949292369,0.34116564,37286.0,37285.0,0.422118]
[1643949293470,0.34116564,37286.0,37285.0,0.64093776]
[1643949293672,0.39116564,37286.0,37285.0,0.422118]
[1643949293970,0.39116564,37286.0,37285.0,0.71024607]
[1643949294172,0.39116564,37286.0,37285.0,0.422118]
[1643949295172,0.39116564,37286.0,37285.0,0.71024708]
[1643949295822,0.39116564,37286.0,37285.0,0.36019208]
[1643949296022,0.39116564,37286.0,37285.0,0.71024708]
[1643949296323,0.39116564,37286.0,37285.0,0.71024782]
[1643949297322,0.39116564,37286.0,37285.0,0.422118]
[1643949297926,0.39116564,37286.0,37285.0,0.64057807]
[1643949299591,0.39116564,37286.0,37285.0,0.42080836]
[1643949301393,0.39116564,37286.0,37285.0,0.07075336]
[1643949301593,0.39116564,37286.0,37285.0,0.35890789]
[1643949301793,0.39116564,37286.0,37285.0,0.70896289]
[1643949301993,0.39116564,37286.0,37285.0,0.35890789]
[1643949302194,0.39116564,37286.0,37285.0,0.70896289]
[1643949303095,0.39116564,37286.0,37285.0,0.42080836]
[1643949303530,0.39116564,37286.0,37285.0,0.07075336]
[1643949303728,0.39116564,37286.0,37285.0,0.35890837]
[1643949303930,0.39116564,37286.0,37285.0,0.70896337]
[1643949304329,0.39116564,37286.0,37285.0,0.35890837]
[1643949304530,0.34116564,37286.0,37285.0,0.70896337]
[1643949305935,0.34116564,37286.0,37285.0,0.42100568]
[1643949307773,0.34116564,37286.0,37285.0,0.63606143]
[1643949307971,0.34116564,37286.0,37285.0,0.64009334]
[1643949308375,0.34116564,37286.0,37285.0,0.42100568]
[1643949308772,0.34116564,37286.0,37285.0,0.63655548]
[1643949309072,0.39116564,37286.0,37285.0,0.63847074]
[1643949311121,0.39116564,37286.0,37285.0,0.98367213]
[1643949312121,0.34116564,37286.0,37285.0,0.98367213]
[1643949312321,0.39116564,37286.0,37285.0,0.98367213]
[1643949312521,0.34116564,37286.0,37285.0,0.98367213]
[1643949316883,0.34116564,37286.0,37285.0,1.1692958]
[1643949317184,0.134125,37289.0,37286.0,1.3]
[1643949317385,0.00069247,37290.0,37287.0,1.05678891]
[1643949317586,0.00069247,37290.0,37289.0,1.39012952]
[1643949317783,0.00069247,37290.0,37289.0,2.02711151]
[1643949317984,0.00069247,37290.0,37289.0,2.42984647]
[1643949318232,0.067035,37295.0,37289.0,2.42984647]
[1643949318233,0.00036858,37294.0,37291.0,0.350055]
[1643949318423,0.00036858,37294.0,37293.0,0.667038]
[1643949318625,0.06740358,37295.0,37293.0,0.505723]
[1643949318823,0.06740358,37295.0,37294.0,0.28808668]
[1643949319022,0.067035,37295.0,37294.0,0.63814168]
[1643949319523,0.067035,37295.0,37293.0,0.70517968]
[1643949319723,0.06740358,37295.0,37294.0,0.22638319]
[1643949320124,0.23514004,37296.0,37294.0,0.58050711]
[1643949320423,0.23514004,37296.0,37293.0,0.067038]
[1643949320622,0.23514004,37296.0,37294.0,0.58051178]
[1643949320623,0.184079,37296.0,37294.0,0.58051178]
[1643949320824,0.4,37295.0,37294.0,0.58049493]
[1643949321023,0.4,37295.0,37292.0,0.76838286]
[1643949321024,0.61485059,37293.0,37292.0,0.76838286]
[1643949321227,0.9186636,37293.0,37292.0,0.41832786]
[1643949321424,0.9186636,37293.0,37292.0,0.76838286]
[1643949321825,0.9686636,37293.0,37292.0,0.41832786]
[1643949322073,0.9186636,37293.0,37292.0,0.76838286]
[1643949322275,0.9186636,37293.0,37292.0,0.53793]
[1643949322674,0.9186636,37293.0,37292.0,0.76836502]
[1643949323074,0.9186636,37293.0,37292.0,0.53793]
[1643949329328,0.9186636,37293.0,37292.0,0.52293]
[1643949330178,0.9686636,37293.0,37292.0,0.52293]
[1643949331181,0.9686636,37293.0,37292.0,0.75331785]
[1643949331778,0.66485059,37293.0,37292.0,0.52293]
[1643949332180,0.61485059,37293.0,37292.0,0.75331785]
[1643949333080,0.61485059,37293.0,37292.0,0.52293]
[1643949333731,0.66485059,37293.0,37292.0,0.48413]
[1643949333929,0.66485059,37293.0,37292.0,0.134075]
[1643949334726,0.61485059,37293.0,37292.0,0.134075]
[1643949334928,0.61485059,37293.0,37292.0,0.48413]
[1643949335727,0.61485059,37293.0,37292.0,0.53413]
[1643949336428,0.61485059,37293.0,37292.0,0.58793]
[1643949336832,0.00106105,37294.0,37293.0,1.25]
[1643949337094,0.00069247,37294.0,37293.0,1.78791675]
[1643949337291,0.00036858,37301.0,37293.0,2.2336207]
[1643949337492,0.00036858,37301.0,37299.0,0.097764]
[1643949337694,0.01821098,37304.0,37300.0,0.54355397]
[1643949337893,0.01821098,37304.0,37300.0,0.19349897]
[1643949338092,0.01821098,37304.0,37301.0,0.350055]
[1643949338293,0.05036858,37305.0,37302.0,0.13404851]
[1643949338492,0.2537515,37306.0,37303.0,0.134048]
[1643949338693,0.95,37304.0,37303.0,0.134048]
[1643949338892,1.300055,37304.0,37303.0,0.134048]
[1643949339094,0.450055,37304.0,37303.0,0.134048]
[1643949339297,0.450055,37304.0,37300.0,0.19349897]
[1643949339494,0.05,37301.0,37300.0,0.19349897]
[1643949339694,0.05,37301.0,37300.0,0.61058497]
[1643949340924,0.00106099,37302.0,37301.0,0.700055]
[1643949341126,0.05036858,37303.0,37301.0,0.459685]
[1643949341325,0.02162693,37306.0,37303.0,0.350055]
[1643949341524,0.00037007,37305.0,37304.0,0.64700906]
[1643949341724,0.00037007,37305.0,37304.0,0.403855]
[1643949341927,0.02162693,37306.0,37305.0,1.300055]
[1643949342127,0.02162693,37306.0,37305.0,0.403855]
[1643949342325,0.02162693,37306.0,37305.0,0.94711309]
[1643949342725,0.02162693,37306.0,37305.0,1.57727906]
[1643949342925,0.02162693,37306.0,37305.0,1.10395903]
[1643949343126,0.02162693,37306.0,37305.0,1.39188022]
[1643949343626,0.02162693,37306.0,37305.0,0.99188022]
[1643949343825,0.02162693,37306.0,37305.0,0.70395903]
[1643949344228,0.00037007,37310.0,37305.0,0.70395903]
[1643949344473,0.00037007,37313.0,37310.0,0.32632646]
[1643949344672,0.00037007,37313.0,37311.0,0.64436224]
[1643949344871,0.05,37314.0,37312.0,0.46097967]
[1643949345077,0.59214305,37324.0,37312.0,0.46097967]
[1643949345078,0.068098,37326.0,37315.0,0.15]
[1643949345273,0.50146997,37326.0,37317.0,0.350055]
[1643949345473,0.5011,37326.0,37318.0,0.187781]
[1643949345673,0.5011,37326.0,37319.0,0.350055]
[1643949345876,0.5011,37326.0,37320.0,0.0538]
[1643949346074,0.00072457,37324.0,37323.0,0.49951488]
[1643949346375,0.00072457,37324.0,37323.0,0.95336988]
[1643949346975,0.07067187,37326.0,37323.0,0.71036805]
[1643949347173,0.00072456,37325.0,37324.0,0.350055]
[1643949347377,0.00072456,37325.0,37324.0,0.63608054]
[1643949347974,0.00072456,37325.0,37324.0,0.86628719]
[1643949348228,0.02067187,37326.0,37324.0,0.70306654]
[1643949348426,0.00182455,37326.0,37325.0,0.22158127]
[1643949348625,0.05182455,37326.0,37325.0,0.0538]
[1643949349422,0.0511,37326.0,37325.0,0.0538]
[1643949349828,0.24526067,37330.0,37328.0,0.0478]
[1643949350025,0.24526067,37330.0,37329.0,0.350055]
[1643949350226,0.26473601,37330.0,37329.0,0.350055]
[1643949350426,0.24328637,37330.0,37329.0,0.350055]
[1643949350928,1.0,37329.0,37324.0,0.17399592]
[1643949351229,0.01947534,37330.0,37324.0,0.3502965]
[1643949351428,0.01947534,37330.0,37324.0,0.13300024]
[1643949351627,0.01947534,37330.0,37324.0,0.23300024]
[1643949352076,0.01947534,37330.0,37329.0,0.24833949]
[1643949352279,0.0011,37331.0,37329.0,0.30213949]
[1643949353481,0.0011,37331.0,37329.0,0.67111232]
[1643949354581,0.0011,37331.0,37330.0,0.21872001]
[1643949354788,0.00182497,37332.0,37330.0,0.27252001]
[1643949354979,0.00182497,37332.0,37330.0,0.0538]
[1643949355179,0.00182497,37332.0,37330.0,0.1038]
[1643949355379,0.0511,37332.0,37330.0,0.1038]
[1643949355822,0.0011,37332.0,37330.0,0.1038]
[1643949356722,0.05,37331.0,37330.0,0.0538]
[1643949356921,0.05,37331.0,37330.0,0.27370018]
[1643949357120,0.05,37331.0,37330.0,0.0538]
[1643949358121,0.05,37331.0,37330.0,0.1038]
[1643949358323,0.05,37331.0,37330.0,0.32192488]
[1643949359221,0.05,37331.0,37330.0,0.1038]
[1643949359472,0.05,37331.0,37330.0,0.32590431]
[1643949359673,0.00216515,37332.0,37330.0,0.32590431]
[1643949360274,0.05,37331.0,37330.0,0.1038]
[1643949360876,0.05147061,37332.0,37330.0,0.32453534]
[1643949361077,0.05147061,37332.0,37330.0,0.27073534]
[1643949361477,0.00147061,37332.0,37330.0,0.2737981]
[1643949361678,0.00147061,37332.0,37331.0,0.22106644]
[1643949361878,0.0011,37332.0,37331.0,0.21848001]
[1643949362278,0.0011,37332.0,37331.0,0.22909145]
[1643949363077,0.01,37334.0,37332.0,1.5]
[1643949363341,0.06278595,37339.0,37335.0,0.06694661]
[1643949363342,0.01278595,37339.0,37335.0,0.06694661]
[1643949363542,0.01278595,37339.0,37336.0,0.31468625]
[1643949363739,0.01278595,37339.0,37336.0,0.07448029]
[1643949363740,0.05,37338.0,37336.0,0.07448029]
[1643949363938,0.01,37339.0,37336.0,0.17448029]
[1643949364139,0.01,37339.0,37337.0,0.24266236]
[1643949364341,0.01,37339.0,37338.0,0.4038]
[1643949364541,0.01,37339.0,37338.0,0.187697]
[1643949364742,0.01,37339.0,37338.0,0.287697]
[1643949365147,0.01,37339.0,37338.0,0.187697]
[1643949365344,0.01,37339.0,37338.0,0.43893531]
[1643949366143,0.01,37339.0,37338.0,0.30503831]
[1643949367175,0.06,37339.0,37338.0,0.30503831]
[1643949367373,0.055,37339.0,37338.0,0.30503831]
[1643949368173,0.005,37339.0,37338.0,0.30503831]
[1643949368973,0.055,37339.0,37338.0,0.30503831]
[1643949369374,0.005,37339.0,37338.0,0.30503831]
[1643949369975,0.00489725,37339.0,37338.0,0.30503831]
[1643949370174,0.05489725,37339.0,37338.0,0.30503831]
[1643949371920,0.00489725,37339.0,37338.0,0.30503831]
[1643949372722,0.05489725,37339.0,37338.0,0.30503831]
[1643949373321,0.00489725,37339.0,37338.0,0.30503831]
[1643949375375,0.05489725,37339.0,37338.0,0.30503831]
[1643949375578,0.00489725,37339.0,37338.0,0.30503831]
[1643949376374,0.00489725,37339.0,37338.0,0.1038]
[1643949376875,0.00489725,37339.0,37338.0,0.0538]
[1643949378323,0.00489725,37339.0,37338.0,0.2886094]
[1643949379326,0.00489725,37339.0,37338.0,0.0538]
[1643949379528,0.24411145,37339.0,37336.0,0.200835]
[1643949379726,0.05,37337.0,37334.0,0.066956]
[1643949379925,0.00526779,37339.0,37334.0,0.066956]
[1643949380126,0.05,37335.0,37334.0,0.066956]
[1643949380327,0.05,37335.0,37334.0,0.35871134]
[1643949380525,0.05,37335.0,37334.0,0.45932415]
[1643949382777,0.05,37335.0,37334.0,0.50932415]
[1643949382975,0.05,37335.0,37334.0,0.39236815]
[1643949383175,0.05,37335.0,37333.0,0.05]
[1643949383575,0.05037054,37335.0,37334.0,0.07749871]
[1643949383975,0.05,37335.0,37334.0,0.07749871]
[1643949390775,0.05,37335.0,37334.0,0.12749871]
[1643949391876,0.05,37335.0,37333.0,0.116966]
[1643949392378,0.05037054,37335.0,37333.0,0.116966]
[1643949392774,0.05,37335.0,37333.0,0.116966]
[1643949393225,0.05037054,37335.0,37333.0,0.116966]
[1643949393628,0.05037054,37335.0,37333.0,0.21133649]
[1643949393830,0.05037054,37335.0,37333.0,0.116966]
[1643949394025,0.05,37335.0,37333.0,0.116966]
[1643949394425,0.05037054,37335.0,37333.0,0.116966]
[1643949394827,0.05037054,37335.0,37334.0,0.10029233]
[1643949395027,0.05,37335.0,37334.0,0.10029233]
[1643949395226,0.05,37335.0,37333.0,0.116966]
[1643949395827,0.05037054,37335.0,37333.0,0.116966]
[1643949396431,0.05,37335.0,37333.0,0.116966]
[1643949396828,0.05037054,37335.0,37333.0,0.116966]
[1643949397072,0.05037054,37335.0,37333.0,0.19447824]
[1643949397774,0.05,37335.0,37333.0,0.19447824]
[1643949397976,0.05037054,37335.0,37333.0,0.19447824]
[1643949398175,0.05037054,37335.0,37334.0,0.23008543]
[1643949398374,0.05,37335.0,37334.0,0.23008543]
[1643949401633,0.05,37335.0,37333.0,0.23008543]
[1643949401634,0.27833908,37335.0,37333.0,0.23008543]
[1643949401829,0.25103619,37334.0,37331.0,0.28008543]
[1643949402026,0.25103619,37334.0,37330.0,0.28008543]
[1643949402229,0.95,37331.0,37330.0,0.28008543]
[1643949402428,0.05,37331.0,37330.0,0.28008543]
[1643949402732,0.05,37331.0,37330.0,0.33487357]
[1643949403528,0.05,37331.0,37330.0,0.10478814]
[1643949403728,0.05,37331.0,37330.0,0.38487357]
[1643949403928,0.05,37331.0,37330.0,0.15478814]
[1643949404875,0.05,37331.0,37330.0,0.10478814]
[1643949405075,0.05,37331.0,37329.0,0.23008543]
[1643949405877,0.05037054,37331.0,37329.0,0.23008543]
[1643949406277,0.05,37331.0,37329.0,0.23008543]
[1643949407077,0.05,37331.0,37328.0,0.23008543]
[1643949407277,0.7,37329.0,37328.0,0.23008543]
[1643949407476,0.05,37329.0,37328.0,0.23008543]
[1643949411332,0.05,37329.0,37328.0,0.31602432]
[1643949411732,0.05,37329.0,37328.0,0.23008543]
[1643949412176,0.05,37329.0,37326.0,0.33318718]
[1643949412177,0.05,37329.0,37327.0,0.23008543]
[1643949413378,0.20216796,37332.0,37327.0,0.23008543]
[1643949413577,0.20216796,37332.0,37328.0,0.23008543]
[1643949413779,0.00037054,37332.0,37328.0,0.23008543]
[1643949413979,0.20364237,37333.0,37328.0,0.23008543]
[1643949414381,0.20327183,37333.0,37328.0,0.23008543]
[1643949416432,0.20327183,37333.0,37327.0,0.23008543]
[1643949422181,0.20327183,37333.0,37328.0,0.23008543]
[1643949422982,0.20327183,37333.0,37327.0,0.23008543]
[1643949423429,0.20327183,37333.0,37329.0,0.25332549]
[1643949423827,0.24172678,37335.0,37329.0,0.25332549]
[1643949424026,0.24242368,37335.0,37329.0,0.25332549]
[1643949424226,0.24242368,37335.0,37329.0,0.48341092]
[1643949424428,0.00106744,37335.0,37330.0,0.23008543]
[1643949425028,0.2258113,37337.0,37334.0,0.08031848]
[1643949425225,0.349972,37337.0,37335.0,0.28357316]
[1643949426726,0.35034254,37337.0,37335.0,0.28357316]
[1643949427375,0.00037054,37337.0,37335.0,0.28357316]
[1643949427580,0.00037054,37338.0,37335.0,0.35101316]
[1643949427777,0.00106746,37338.0,37335.0,0.35101316]
[1643949427976,0.00069692,37338.0,37335.0,0.35101316]
[1643949428376,0.00106746,37338.0,37335.0,0.35101316]
[1643949429677,0.349972,37337.0,37335.0,0.35101316]
[1643949429878,0.35034254,37337.0,37335.0,0.06744]
[1643949430080,0.35034254,37337.0,37333.0,0.23008543]
[1643949430081,0.35034254,37337.0,37332.0,0.23008543]
[1643949430479,0.349972,37336.0,37332.0,0.23008543]
[1643949430730,0.00037054,37337.0,37332.0,0.23008543]
[1643949430927,0.00106746,37338.0,37332.0,0.4882078]
[1643949431126,0.00037054,37338.0,37332.0,0.4882078]
[1643949431327,0.00069693,37336.0,37332.0,0.4882078]
[1643949431527,0.00069693,37336.0,37332.0,0.57004443]
[1643949432330,0.00037054,37338.0,37332.0,0.4882078]
[1643949432532,0.4613769,37339.0,37332.0,0.4882078]
[1643949432533,0.00069693,37336.0,37332.0,0.4882078]
[1643949433431,0.00037054,37338.0,37333.0,0.09037479]
[1643949433633,0.4613769,37339.0,37333.0,0.09037479]
[1643949433634,0.00069693,37336.0,37333.0,0.09037479]
[1643949433832,0.00069693,37336.0,37332.0,0.4882078]
[1643949434684,0.00037054,37338.0,37332.0,0.4882078]
[1643949434883,0.4613769,37339.0,37332.0,0.4882078]
[1643949434884,0.00069693,37336.0,37332.0,0.4882078]
[1643949435885,0.06735198,37338.0,37332.0,0.4882078]
[1643949436085,0.00069693,37336.0,37332.0,0.23008543]
[1643949436985,0.06698144,37338.0,37332.0,0.23008543]
[1643949437185,0.349972,37337.0,37332.0,0.23008543]
[1643949437387,0.00069693,37336.0,37332.0,0.23008543]
[1643949437587,0.00058995,37336.0,37332.0,0.23008543]
[1643949438228,0.06698144,37338.0,37332.0,0.23008543]
[1643949439631,0.00046871,37337.0,37332.0,0.23008543]
[1643949440633,0.36318412,37338.0,37332.0,0.23008543]
[1643949440832,0.21249635,37337.0,37332.0,0.23008543]
[1643949441033,0.00074404,37337.0,37332.0,0.23008543]
[1643949441834,0.36318412,37338.0,37332.0,0.23008543]
[1643949442076,0.00074404,37337.0,37332.0,0.23008543]
[1643949443080,0.36318412,37338.0,37332.0,0.23008543]
[1643949443277,0.29694726,37338.0,37331.0,0.3712459]
[1643949443479,0.21342728,37337.0,37332.0,0.23018314]
[1643949444979,0.21342728,37337.0,37333.0,0.23018314]
[1643949445378,0.349972,37336.0,37333.0,0.23018314]
[1643949445582,0.21178568,37337.0,37333.0,0.23018314]
[1643949445829,0.50917025,37338.0,37333.0,0.23045978]
[1643949446030,0.349972,37337.0,37333.0,0.23045978]
[1643949446228,0.21374808,37336.0,37333.0,0.00027664]
[1643949446628,0.21374808,37336.0,37332.0,0.23018314]
[1643949446828,0.349972,37335.0,37333.0,0.00027664]
[1643949447028,0.21374808,37336.0,37333.0,0.00027664]
[1643949447834,0.21374808,37336.0,37332.0,0.23018314]
[1643949448030,0.21374808,37336.0,37333.0,0.00074469]
[1643949449029,0.21374808,37336.0,37332.0,0.23018314]
[1643949449330,0.74662657,37338.0,37333.0,0.00074469]
[1643949449576,0.349972,37337.0,37333.0,0.00074469]
[1643949450378,0.349972,37337.0,37332.0,0.23018314]
[1643949450578,0.349972,37337.0,37333.0,0.00074468]
[1643949451581,0.349972,37337.0,37332.0,0.23018314]
[1643949451780,0.349972,37337.0,37333.0,0.00074468]
[1643949452782,0.349972,37337.0,37333.0,0.23018314]
[1643949452981,0.50933253,37338.0,37333.0,0.23092782]
[1643949453432,0.21312985,37338.0,37333.0,0.23092782]
[1643949453928,0.21312985,37338.0,37333.0,0.23018314]
[1643949454128,0.349972,37337.0,37333.0,0.23092782]
[1643949454332,0.21312985,37338.0,37333.0,0.23092782]
[1643949454729,0.349972,37337.0,37333.0,0.23092782]
[1643949455131,0.349972,37337.0,37333.0,0.23018314]
[1643949455329,0.349972,37336.0,37333.0,0.23092782]
[1643949455730,0.05,37337.0,37333.0,0.23092782]
[1643949455934,0.349972,37336.0,37333.0,0.23092782]
[1643949456130,0.00074458,37338.0,37333.0,0.23092782]
[1643949456432,0.349972,37337.0,37333.0,0.00074469]
[1643949456630,0.399972,37337.0,37333.0,0.00074469]
[1643949457483,0.399972,37337.0,37332.0,0.23018314]
[1643949457684,0.05,37337.0,37333.0,0.00074468]
[1643949457884,0.38241098,37337.0,37333.0,0.00074468]
[1643949458287,0.399972,37336.0,37333.0,0.00074468]
[1643949458488,0.349972,37336.0,37333.0,0.00074468]
[1643949458685,0.349972,37336.0,37332.0,0.23018314]
[1643949458885,0.349972,37336.0,37333.0,0.23092783]
[1643949459288,0.11698302,37337.0,37333.0,0.23092783]
[1643949459487,0.349972,37337.0,37333.0,0.23092783]
[1643949459887,0.349972,37336.0,37334.0,0.23018314]
[1643949460287,0.349972,37336.0,37334.0,0.20466591]
[1643949461134,0.05,37337.0,37332.0,0.14923635]
[1643949461329,0.05,37337.0,37333.0,0.00074468]
[1643949461526,0.349972,37336.0,37333.0,0.00074468]
[1643949461928,0.05,37336.0,37333.0,0.00074468]
[1643949462127,0.31389542,37337.0,37333.0,0.00074468]
[1643949462427,0.06698312,37336.0,37333.0,0.00074469]
[1643949462930,0.05,37334.0,37333.0,0.00074469]
[1643949463130,2.44216594,37334.0,37333.0,0.00074469]
[1643949463329,2.68679052,37334.0,37333.0,0.00074469]
[1643949463528,0.41697178,37332.0,37326.0,0.28792119]
[1643949463832,0.25995682,37327.0,37325.0,0.28792119]
[1643949464685,0.25995682,37327.0,37324.0,0.28792119]
[1643949464883,0.349972,37326.0,37324.0,0.28866594]
[1643949465284,0.56359981,37326.0,37324.0,0.00074475]
[1643949465886,0.32695436,37327.0,37323.0,0.28792119]
[1643949466084,0.32695436,37327.0,37323.0,0.28866595]
[1643949466490,0.21094467,37326.0,37323.0,0.28866595]
[1643949466887,0.26094467,37326.0,37323.0,0.00074476]
[1643949467086,0.37794467,37326.0,37322.0,0.28792119]
[1643949467286,0.167,37326.0,37323.0,0.00074476]
[1643949468330,0.167,37326.0,37322.0,0.28792119]
[1643949468530,0.167,37326.0,37323.0,0.00074476]
[1643949469436,0.06700043,37325.0,37321.0,0.60732288]
[1643949469631,0.06700043,37325.0,37323.0,0.00074476]
[1643949469830,0.18400143,37325.0,37323.0,0.00074476]
[1643949470432,0.18400143,37325.0,37324.0,0.23019479]
[1643949470630,0.18400143,37325.0,37323.0,0.23019479]
[1643949470829,0.18400143,37325.0,37323.0,0.23093955]
[1643949471831,0.18400143,37325.0,37323.0,0.23019479]
[1643949473278,0.13256122,37327.0,37323.0,0.23019479]
[1643949474284,0.13400143,37325.0,37323.0,0.23019479]
[1643949474479,0.13400143,37325.0,37323.0,0.23093955]
[1643949475280,0.05,37324.0,37323.0,0.23093955]
[1643949475480,0.05,37324.0,37323.0,0.23019479]
[1643949477532,0.05,37324.0,37322.0,0.23093956]
[1643949477933,0.05,37324.0,37322.0,0.23019479]
[1643949479682,0.05,37324.0,37321.0,0.23093956]
[1643949480282,0.05,37324.0,37321.0,0.23019479]
[1643949480480,0.05,37324.0,37321.0,0.23093956]
[1643949481582,0.05,37324.0,37321.0,0.23019479]
[1643949481782,0.05,37324.0,37321.0,0.23093956]
[1643949482682,0.05,37324.0,37321.0,0.23019479]
[1643949482882,0.05,37324.0,37321.0,0.23093956]
[1643949483931,0.05,37324.0,37321.0,0.23019479]
[1643949484133,0.05,37324.0,37321.0,0.23093956]
[1643949484536,0.117007,37324.0,37321.0,0.23093956]
[1643949484737,0.41698139,37323.0,37321.0,0.00074477]
[1643949485134,0.41698139,37323.0,37319.0,0.23019479]
[1643949485332,0.349972,37322.0,37320.0,0.00074478]
[1643949485534,0.86079134,37321.0,37320.0,0.00074478]
[1643949485733,0.26079134,37321.0,37320.0,0.00074478]
[1643949486332,0.26079134,37321.0,37318.0,0.23019479]
[1643949486532,0.26079134,37321.0,37319.0,0.00074479]
[1643949486533,0.32780107,37321.0,37319.0,0.00074479]
[1643949487583,0.32780107,37321.0,37318.0,0.23019479]
[1643949487783,0.39481207,37321.0,37318.0,0.23093958]
[1643949488786,0.39481207,37321.0,37318.0,0.23019479]
[1643949488986,0.39481207,37321.0,37318.0,0.23093959]
[1643949489188,0.05,37322.0,37318.0,0.23093959]
[1643949489587,0.2046,37326.0,37318.0,0.23093959]